bitfinex-derivatives/quotes_ETHF0:USTF0_20250112
["timestamp","ask_amount","ask_price","bid_price","bid_amount"]
[1736693422895,1.02882,3272.5,3272.3,0.21403]
[1736693423695,0.8148,3272.5,3272.4,0.21402]
[1736693424901,3.2078,3272.6,3272.5,0.21402]
[1736693427397,3.2078,3272.6,3272.0,1.6505]
[1736693427598,3.2078,3272.6,3272.0,2.8635]
[1736693427798,3.2078,3272.6,3272.1,0.21404]
[1736693428006,0.21403,3272.3,3272.1,0.21404]
[1736693428403,0.8396,3272.2,3272.1,0.21404]
[1736693430605,0.8396,3272.2,3272.0,2.8635]
[1736693430806,0.8396,3272.2,3272.0,3.07755]
[1736693431109,0.8396,3272.2,3272.1,0.21404]
[1736693431505,0.8396,3272.2,3272.0,1.6505]
[1736693431811,1.6411,3272.2,3272.1,0.21404]
[1736693435212,0.8396,3272.2,3272.1,0.21404]
[1736693436012,0.805,3272.5,3272.4,0.21402]
[1736693436207,1.6435,3272.5,3272.4,0.21402]
[1736693436908,1.6435,3272.5,3272.3,0.21403]
[1736693437509,0.21402,3272.4,3272.2,0.21403]
[1736693437810,0.822,3272.3,3272.2,0.21403]
[1736693439916,1.03603,3272.3,3272.1,0.21404]
[1736693440319,0.822,3272.3,3272.0,1.6505]
[1736693440521,0.822,3272.3,3272.2,0.21404]
[1736693442418,1.6435,3272.5,3272.0,1.6505]
[1736693442723,0.8385,3272.5,3272.4,0.21402]
[1736693444918,1.05252,3272.5,3272.3,0.21403]
[1736693445117,0.8385,3272.5,3272.0,1.6505]
[1736693445318,0.8385,3272.5,3272.3,0.21402]
[1736693445920,0.8385,3272.5,3272.4,0.21402]
[1736693447029,0.8385,3272.5,3272.0,1.6505]
[1736693447415,0.8385,3272.5,3272.3,0.21402]
[1736693448026,0.8385,3272.5,3272.0,1.6505]
[1736693448225,0.8385,3272.5,3272.4,0.21402]
[1736693458723,6.85124605,3272.5,3272.4,0.21402]
[1736693459124,7.06526605,3272.5,3272.4,0.21402]
[1736693459637,7.06526605,3272.5,3272.3,0.21403]
[1736693460837,6.01274605,3272.4,3272.3,0.21403]
[1736693464238,6.01274605,3272.4,3272.1,4.79475706]
[1736693464534,1.5788,3272.3,3272.1,4.79475706]
[1736693464741,0.21404,3272.2,3272.1,4.79475706]
[1736693465336,0.21405,3272.0,3271.9,4.79475706]
[1736693465547,9.22054605,3272.2,3271.8,5.56393164]
[1736693465833,0.21406,3271.9,3271.8,3.53033164]
[1736693466028,5.21406,3271.9,3271.8,3.53033164]
[1736693466232,5.21406,3271.9,3271.8,2.54473164]
[1736693467236,0.21408,3271.6,3271.5,0.21408]
[1736693467435,0.21408,3271.6,3271.5,1.07318]
[1736693468333,6.00635962,3271.6,3271.5,0.8591]
[1736693468539,6.00635962,3271.6,3271.5,1.07318]
[1736693468740,6.22043962,3271.6,3271.5,1.07318]
[1736693468932,6.22043962,3271.6,3271.5,0.8591]
[1736693469335,6.22043962,3271.6,3271.5,1.07318]
[1736693469631,0.21408,3271.6,3271.5,0.8591]
[1736693470431,0.2141,3271.3,3271.1,0.2141]
[1736693470640,0.21411,3271.1,3271.0,0.8344]
[1736693471235,3.2078,3271.4,3271.0,0.8344]
[1736693471437,0.21411,3271.2,3271.1,0.21411]
[1736693472039,3.81055817,3271.2,3271.0,1.04851]
[1736693472733,3.59644817,3271.2,3271.0,0.8344]
[1736693472939,3.59644817,3271.2,3271.1,0.21411]
[1736693473139,2.29564817,3271.2,3271.1,0.21411]
[1736693473340,0.99484817,3271.2,3271.1,0.21411]
[1736693473534,0.99484817,3271.2,3271.1,41.01411]
[1736693474437,0.21408,3271.6,3271.2,0.2141]
[1736693474836,0.21409,3271.5,3271.2,0.2141]
[1736693475636,0.21409,3271.4,3271.1,40.8]
[1736693475842,0.21409,3271.4,3271.0,1.04851]
[1736693476045,0.21409,3271.5,3271.0,0.8344]
[1736693476247,0.21409,3271.5,3271.2,0.2141]
[1736693476446,0.8094,3271.7,3271.2,0.2141]
[1736693476745,0.21408,3271.6,3271.2,0.2141]
[1736693477342,0.21408,3271.5,3271.2,0.2141]
[1736693477546,0.8094,3271.7,3271.1,41.6485]
[1736693477743,0.8094,3271.7,3271.1,41.8626]
[1736693477939,0.21409,3271.5,3271.1,41.8626]
[1736693478142,0.8094,3271.7,3271.1,1.0626]
[1736693478342,0.21408,3271.5,3271.2,0.2141]
[1736693479546,0.21408,3271.6,3271.1,0.8485]
[1736693479843,0.21408,3271.5,3271.2,0.2141]
[1736693480240,0.21409,3271.4,3271.1,1.06261]
[1736693480439,0.21409,3271.5,3271.2,1.0089]
[1736693480839,0.8094,3271.7,3271.2,0.7948]
[1736693481236,0.8094,3271.7,3271.4,0.21409]
[1736693481443,1.02347,3271.7,3271.5,0.8047]
[1736693481840,1.02347,3271.7,3271.6,1.6698]
[1736693483346,1.02347,3271.7,3271.5,0.8047]
[1736693483347,0.21408,3271.6,3271.5,0.8047]
[1736693485952,1.02347,3271.7,3271.5,1.01878]
[1736693486255,1.02347,3271.7,3271.5,0.8047]
[1736693486551,0.8094,3271.7,3271.5,0.8047]
[1736693486751,1.02347,3271.7,3271.5,0.8047]
[1736693486952,1.02347,3271.7,3271.6,0.8324]
[1736693487153,0.8094,3271.7,3271.6,0.8324]
[1736693487348,3.42187,3271.8,3271.6,0.8324]
[1736693487547,3.2078,3271.8,3271.6,0.8324]
[1736693487749,0.21407,3271.7,3271.6,0.8324]
[1736693491954,0.21407,3271.8,3271.6,1.04648]
[1736693492254,0.21407,3271.8,3271.6,1.04647]
[1736693492946,4.79526423,3272.0,3271.6,0.8324]
[1736693493147,0.21407,3271.7,3271.6,1.04647]
[1736693493451,0.21407,3271.7,3271.6,0.8324]
[1736693494149,0.21408,3271.6,3271.5,1.5972]
[1736693494353,1.06318,3271.6,3271.5,0.8047]
[1736693496241,5.85844423,3271.6,3271.5,0.8047]
[1736693496744,9.06624423,3271.6,3271.5,0.8047]
[1736693497453,8.21714423,3271.6,3271.5,1.01878]
[1736693497953,8.21714423,3271.6,3271.5,0.8047]
[1736693498954,3.42188,3271.6,3271.5,0.8047]
[1736693499151,0.2141,3271.3,3271.2,0.8422]
[1736693499447,0.2141,3271.2,3271.1,0.8153]
[1736693499955,4.79526423,3271.5,3271.1,0.8153]
[1736693500153,0.21409,3271.4,3271.2,0.2141]
[1736693500954,4.79526423,3271.5,3271.1,0.8153]
[1736693501452,0.2141,3271.2,3271.1,0.8153]
[1736693502658,4.79526423,3271.4,3271.1,0.8153]
[1736693502952,0.2141,3271.3,3271.1,1.0294]
[1736693503153,4.79526423,3271.4,3271.1,0.8153]
[1736693503753,5.00935423,3271.4,3271.2,0.2141]
[1736693503954,4.79526423,3271.3,3271.2,0.2141]
[1736693505051,5.00936423,3271.3,3271.1,0.8153]
[1736693505255,5.00935423,3271.4,3271.2,0.2141]
[1736693506258,5.00935423,3271.4,3271.1,0.8153]
[1736693506752,0.2141,3271.2,3271.1,0.8153]
[1736693507352,4.79526423,3271.3,3271.1,0.8153]
[1736693507551,0.2141,3271.2,3271.1,0.8153]
[1736693508851,0.21412,3271.0,3270.8,0.21413]
[1736693509052,6.00635962,3271.3,3270.8,1.83603]
[1736693509259,0.21411,3271.1,3270.9,0.21412]
[1736693509860,5.01473346,3271.1,3270.9,0.21412]
[1736693510255,4.80062346,3271.1,3270.9,0.21412]
[1736693511162,4.80062346,3271.0,3270.9,0.21412]
[1736693512453,6.22046962,3271.1,3270.9,0.21412]
[1736693514259,6.22046962,3271.1,3270.8,1.6219]
[1736693514260,0.21411,3271.0,3270.8,1.83602]
[1736693514457,0.21412,3271.0,3270.8,1.83602]
[1736693514657,5.01997124,3271.0,3270.8,1.83602]
[1736693515057,5.01997124,3271.0,3270.8,1.6219]
[1736693515058,0.21412,3270.9,3270.8,1.6219]
[1736693515659,5.01997124,3270.9,3270.8,1.6219]
[1736693516458,6.22047962,3270.9,3270.8,1.6219]
[1736693518066,6.22047962,3270.9,3270.8,0.8111]
[1736693518766,0.21414,3270.7,3270.6,0.21414]
[1736693518961,0.21413,3270.8,3270.5,1.84864]
[1736693519267,0.21414,3270.6,3270.5,1.6345]
[1736693519770,0.21414,3270.6,3270.5,1.84865]
[1736693519969,6.22049962,3270.7,3270.6,0.21414]
[1736693520269,6.00635962,3270.7,3270.6,0.21414]
[1736693521462,6.00635962,3270.7,3270.5,2.5248]
[1736693521768,6.22049962,3270.7,3270.5,2.73895]
[1736693521957,0.21414,3270.6,3270.5,2.5248]
[1736693522161,5.01263546,3270.6,3270.5,2.5248]
[1736693523268,4.79849546,3270.6,3270.5,2.5248]
[1736693523462,4.79849546,3270.6,3270.5,2.73895]
[1736693523667,5.01263546,3270.6,3270.5,2.73895]
[1736693524369,4.79849546,3270.6,3270.5,2.73895]
[1736693524870,0.21414,3270.6,3270.5,2.5248]
[1736693525067,4.79849546,3270.7,3270.6,0.21414]
[1736693526176,6.22047962,3270.9,3270.6,0.21414]
[1736693526177,4.79849546,3270.8,3270.6,0.21414]
[1736693526377,4.79849546,3270.8,3270.7,0.21413]
[1736693527275,0.21412,3270.9,3270.7,0.21413]
[1736693527875,0.21412,3270.9,3270.5,2.5248]
[1736693528179,0.21413,3270.9,3270.6,0.21414]
[1736693528479,0.21412,3270.9,3270.7,0.21413]
[1736693529282,5.01261546,3270.9,3270.7,0.21413]
[1736693530175,8.22041546,3271.0,3270.7,0.21413]
[1736693530378,8.00629546,3271.0,3270.5,2.5248]
[1736693530676,0.21412,3270.9,3270.7,0.21413]
[1736693531581,5.01261546,3270.9,3270.7,0.21413]
[1736693532280,5.01261546,3270.9,3270.5,2.5248]
[1736693532482,5.01261546,3270.9,3270.6,0.21414]
[1736693533285,4.79849546,3270.9,3270.6,0.21414]
[1736693533583,4.79849546,3270.9,3270.5,2.5248]
[1736693533772,5.01261546,3270.9,3270.7,0.21413]
[1736693535787,5.01261546,3270.9,3270.5,2.5248]
[1736693536290,5.01261546,3270.9,3270.6,0.21414]
[1736693537586,5.01261546,3270.9,3270.7,0.21413]
[1736693538879,5.01261546,3270.9,3270.6,0.21414]
[1736693539085,4.79849546,3270.9,3270.5,2.5248]
[1736693539286,4.79849546,3270.9,3270.8,0.21413]
[1736693540385,4.79849546,3271.0,3270.9,0.21412]
[1736693540590,4.79849546,3271.0,3270.9,1.06042]
[1736693540989,6.00635962,3271.2,3271.1,0.21411]
[1736693541294,6.00635962,3271.2,3271.1,3.42191]
[1736693541693,6.00635962,3271.7,3271.5,0.21408]
[1736693542193,6.00635962,3271.7,3271.5,1.212]
[1736693542490,6.00635962,3271.7,3271.6,0.21408]
[1736693542887,10.38188983,3272.0,3271.5,1.212]
[1736693542888,3.2078,3272.0,3271.9,0.21406]
[1736693543089,6.00635962,3272.1,3271.6,3.2078]
[1736693543285,6.00635962,3272.1,3272.0,0.21405]
[1736693544198,7.38810983,3272.5,3272.3,0.21403]
[1736693544199,6.00635962,3272.5,3272.3,0.21403]
[1736693544599,6.00635962,3272.5,3272.4,0.8522]
[1736693545294,0.8167,3272.6,3272.4,0.8522]
[1736693546294,0.8167,3272.6,3272.3,1.6504]
[1736693546998,1.03071,3272.6,3272.3,1.6504]
[1736693549096,1.03071,3272.6,3272.3,1.86443]
[1736693549297,1.03071,3272.6,3272.3,1.6504]
[1736693550600,1.03071,3272.6,3272.3,1.86443]
[1736693551294,0.21402,3272.5,3272.2,1.212]
[1736693551693,0.21403,3272.4,3272.2,1.212]
[1736693551995,0.8167,3272.6,3272.2,1.212]
[1736693552197,0.21402,3272.5,3272.2,1.212]
[1736693553200,0.21403,3272.4,3272.1,2.21124]
[1736693554305,0.21404,3272.3,3272.0,3.2078]
[1736693554494,0.21404,3272.2,3271.9,0.21405]
[1736693554699,1.05144,3272.2,3271.9,0.21405]
[1736693554898,0.8374,3272.2,3271.9,0.21405]
[1736693555095,0.8374,3272.2,3272.0,0.21405]
[1736693555494,1.05144,3272.2,3271.9,0.21405]
[1736693555706,0.21405,3272.0,3271.7,0.21407]
[1736693556002,0.7992,3271.9,3271.7,0.21407]
[1736693556792,0.7992,3271.9,3271.6,3.2078]
[1736693556793,1.01326,3271.9,3271.6,3.2078]
[1736693558006,0.21406,3271.8,3271.6,3.2078]
[1736693558507,0.8412,3271.7,3271.6,3.2078]
[1736693559209,1.05527,3271.7,3271.6,3.2078]
[1736693559917,0.8412,3271.7,3271.6,3.2078]
[1736693560101,1.05527,3271.7,3271.6,3.2078]
[1736693561217,1.05527,3271.7,3271.4,0.21408]
[1736693561507,1.05527,3271.7,3271.2,1.212]
[1736693561704,0.8412,3271.7,3271.5,0.21408]
[1736693562400,0.8412,3271.7,3271.2,1.212]
[1736693562801,0.8412,3271.7,3271.5,0.21408]
[1736693564509,1.05528,3271.7,3271.2,1.212]
[1736693564710,0.8412,3271.7,3271.2,1.212]
[1736693564913,0.8412,3271.7,3271.5,0.21408]
[1736693566307,1.05527,3271.7,3271.4,0.21409]
[1736693566510,0.21408,3271.6,3271.3,0.21409]
[1736693566715,0.21408,3271.6,3271.2,1.212]
[1736693566716,0.8412,3271.7,3271.2,1.212]
[1736693567509,0.8412,3271.7,3271.5,0.21408]
[1736693568914,1.05527,3271.7,3271.5,0.21408]
[1736693569717,0.8412,3271.7,3271.5,0.21408]
[1736693571014,1.05527,3271.7,3271.5,0.21408]
[1736693571416,0.8412,3271.7,3271.5,0.21408]
[1736693571614,1.05527,3271.7,3271.4,0.21408]
[1736693572018,0.8412,3271.7,3271.4,0.21408]
[1736693572221,0.21408,3271.6,3271.2,1.212]
[1736693572518,0.21408,3271.6,3271.3,0.21409]
[1736693573415,0.21408,3271.6,3271.2,1.212]
[1736693573617,0.21408,3271.6,3271.4,0.21409]
[1736693573810,0.21408,3271.6,3271.2,1.212]
[1736693574016,0.21408,3271.6,3271.3,0.21409]
[1736693574418,0.21409,3271.5,3271.2,1.4261]
[1736693574625,0.2141,3271.3,3271.1,2.5254]
[1736693575017,0.7925,3271.2,3271.1,2.73951]
[1736693575523,0.8148,3271.4,3271.3,0.2141]
[1736693577421,0.8148,3271.4,3271.2,0.2141]
[1736693579934,1.00659,3271.5,3271.2,0.2141]
[1736693580137,3.2078,3271.7,3271.1,2.5254]
[1736693580332,3.42187,3271.7,3271.2,1.212]
[1736693580636,3.42187,3271.7,3271.5,0.21408]
[1736693581631,3.2078,3271.7,3271.6,0.21408]
[1736693583741,3.2078,3271.7,3271.2,4.4198]
[1736693583742,3.2078,3271.7,3271.4,1.212]
[1736693584242,3.2078,3271.7,3271.5,1.07058]
[1736693584446,0.21408,3271.6,3271.5,0.8565]
[1736693584649,1.6271,3271.8,3271.2,4.4198]
[1736693584837,0.21409,3271.4,3271.2,5.2763]
[1736693585343,0.21409,3271.4,3271.2,5.4904]
[1736693585844,0.21409,3271.4,3271.2,5.2763]
[1736693586648,0.21409,3271.4,3271.2,5.4904]
[1736693587245,0.8147,3271.5,3271.3,0.21409]
[1736693587545,0.8147,3271.5,3271.4,0.21409]
[1736693588242,0.8147,3271.5,3271.2,2.0685]
[1736693588644,3.2078,3271.7,3271.6,0.21408]
[1736693588849,6.00635962,3272.0,3271.9,0.21406]
[1736693589248,6.00635962,3272.0,3271.9,41.01406]
[1736693589748,6.00635962,3272.0,3271.9,0.21406]
[1736693590139,3.42183,3272.3,3271.5,40.8]
[1736693590447,3.42183,3272.3,3272.0,0.21405]
[1736693590649,3.2078,3272.3,3272.1,0.8247]
[1736693590850,3.42183,3272.3,3272.1,0.8247]
[1736693591444,3.42183,3272.3,3272.1,1.03874]
[1736693592552,3.2078,3272.3,3272.2,0.21404]
[1736693594951,0.8358,3272.4,3272.2,0.21404]
[1736693596146,0.8358,3272.4,3272.3,0.21403]
[1736693596848,0.8358,3272.4,3272.2,0.21403]
[1736693597055,0.8358,3272.4,3272.1,0.8247]
[1736693597451,0.8358,3272.4,3272.3,0.21403]
[1736693598257,0.8358,3272.4,3272.2,0.21404]
[1736693598458,0.8358,3272.4,3272.1,0.8247]
[1736693598759,0.8358,3272.4,3272.3,0.21403]
[1736693601658,0.8358,3272.4,3272.2,0.21403]
[1736693601858,0.8358,3272.4,3272.2,1.01813]
[1736693606064,1.04982,3272.4,3272.2,1.01813]
[1736693606265,0.8358,3272.4,3272.2,1.01813]
[1736693607564,0.8358,3272.4,3272.2,0.8041]
[1736693607764,0.8358,3272.4,3272.3,0.21403]
[1736693608366,0.8358,3272.4,3272.2,0.8041]
[1736693608557,1.04982,3272.4,3272.2,1.01813]
[1736693608761,3.42183,3272.3,3272.2,0.8041]
[1736693609069,3.2078,3272.3,3272.2,0.8041]
[1736693609259,1.04983,3272.4,3272.2,0.8041]
[1736693610271,0.8358,3272.4,3272.2,0.8041]
[1736693610473,1.04982,3272.4,3272.2,0.8041]
[1736693611263,0.21403,3272.3,3272.1,0.8247]
[1736693611571,0.8684,3272.2,3272.1,0.8247]
[1736693612371,0.8684,3272.2,3272.1,1.03874]
[1736693619873,0.8358,3272.4,3272.1,0.8247]
[1736693620079,0.8358,3272.4,3272.2,0.21403]
[1736693621577,0.8358,3272.4,3272.2,0.21404]
[1736693622677,0.8358,3272.4,3272.1,0.8247]
[1736693622876,0.8358,3272.4,3272.3,0.21403]
[1736693623176,0.21401,3272.6,3272.3,0.21403]
[1736693623379,1.11641,3272.6,3272.4,0.8975]
[1736693624477,1.11641,3272.6,3272.4,1.11152]
[1736693625774,1.11641,3272.6,3272.4,0.8975]
[1736693625975,0.21402,3272.5,3272.4,1.11152]
[1736693628687,1.11641,3272.6,3272.5,0.21402]
[1736693628882,1.11641,3272.6,3272.4,1.11152]
[1736693629082,7.12276962,3272.6,3272.5,0.21402]
[1736693629481,6.90875962,3272.6,3272.4,0.8975]
[1736693629683,0.21402,3272.5,3272.4,1.11152]
[1736693631384,0.21402,3272.5,3272.4,0.8975]
[1736693632187,6.22037962,3272.5,3272.4,0.8975]
[1736693633187,6.22037962,3272.5,3272.4,1.11152]
[1736693634982,6.22037962,3272.5,3272.4,0.8975]
[1736693635381,0.21402,3272.5,3272.4,0.8975]
[1736693636385,0.21402,3272.5,3272.4,1.11152]
[1736693637188,0.21402,3272.5,3272.4,0.8975]
[1736693638692,0.9024,3272.6,3272.3,0.21403]
[1736693638990,0.21402,3272.4,3272.3,0.21403]
[1736693639489,0.21402,3272.4,3272.1,6.45398155]
[1736693639688,0.21402,3272.4,3272.2,0.21403]
[1736693639889,0.21402,3272.4,3272.3,0.21403]
[1736693640194,0.21403,3272.4,3272.2,0.21404]
[1736693640386,0.21403,3272.3,3272.2,0.21404]
[1736693640789,0.21403,3272.4,3272.2,0.21404]
[1736693641089,5.9960143,3272.3,3272.2,0.21404]
[1736693641682,5.9960143,3272.3,3272.1,6.45398155]
[1736693641888,1.04754,3272.2,3272.1,4.80168155]
[1736693642090,2.76034,3272.2,3272.1,4.80168155]
[1736693642294,0.21404,3272.1,3272.0,4.80168155]
[1736693643693,0.21408,3271.5,3271.4,4.80168155]
[1736693644491,0.21408,3271.5,3271.1,1.7178]
[1736693644492,5.98662433,3271.6,3271.1,4.80168155]
[1736693644687,0.2141,3271.2,3271.1,4.80168155]
[1736693645994,0.2141,3271.2,3270.8,2.567]
[1736693646296,1.04181,3271.1,3270.8,2.78112]
[1736693647290,0.8277,3271.1,3270.8,2.567]
[1736693647691,0.21412,3270.9,3270.8,2.567]
[1736693650990,0.21412,3271.0,3270.8,2.567]
[1736693651187,0.21412,3270.9,3270.8,2.567]
[1736693651998,4.0355,3271.1,3270.8,2.567]
[1736693652205,0.21412,3271.0,3270.8,2.567]
[1736693652500,0.21412,3270.9,3270.8,2.567]
[1736693652699,4.0355,3271.1,3270.8,2.567]
[1736693652900,0.21412,3271.0,3270.8,2.567]
[1736693653202,4.0355,3271.1,3270.8,2.567]
[1736693653404,4.24961,3271.1,3270.8,2.567]
[1736693655203,4.0355,3271.1,3270.8,2.567]
[1736693655504,0.21412,3271.0,3270.8,2.567]
[1736693655801,4.24961,3271.1,3270.8,2.567]
[1736693656701,0.21412,3271.0,3270.8,2.567]
[1736693657797,4.0355,3271.1,3270.8,2.567]
[1736693658105,4.24961,3271.1,3270.8,2.78112]
[1736693658304,3.2078,3271.1,3270.9,0.21412]
[1736693658998,3.2078,3271.1,3271.0,0.21411]
[1736693661415,3.2078,3271.1,3270.8,43.367]
[1736693661616,3.2078,3271.1,3270.9,0.21412]
[1736693661822,3.2078,3271.1,3270.8,43.367]
[1736693662110,3.2078,3271.1,3270.9,0.21412]
[1736693662712,0.2141,3271.2,3270.9,0.21412]
[1736693663821,0.2141,3271.2,3271.0,0.21411]
[1736693664214,1.7287,3271.4,3270.8,43.367]
[1736693664418,0.2141,3271.3,3271.1,0.21411]
[1736693664816,1.94279,3271.4,3271.2,1.0781]
[1736693665020,1.07089,3271.4,3271.3,1.7202]
[1736693665711,3.2078,3271.5,3271.3,1.7202]
[1736693665922,3.2078,3271.5,3271.4,0.21409]
[1736693667319,3.2078,3271.5,3271.4,1.42509]
[1736693669323,1.05825,3272.0,3271.4,1.211]
[1736693669625,3.2078,3271.8,3271.7,0.21406]
[1736693670225,0.21404,3272.2,3271.4,4.4188]
[1736693670523,4.9252,3272.4,3271.9,0.21406]
[1736693670524,0.21404,3272.1,3271.9,0.21406]
[1736693670824,0.21404,3272.2,3272.0,2.662]
[1736693671024,4.9252,3272.4,3272.0,2.662]
[1736693671321,0.21404,3272.2,3272.0,2.662]
[1736693671521,0.21404,3272.2,3272.0,2.87605]
[1736693672726,0.21404,3272.2,3272.0,2.662]
[1736693672926,0.21404,3272.2,3272.1,0.21404]
[1736693673422,0.21404,3272.2,3272.0,2.662]
[1736693673617,4.9252,3272.4,3271.5,3.2078]
[1736693673922,0.21407,3271.7,3271.6,1.211]
[1736693674128,0.21407,3271.7,3271.6,2.1202]
[1736693675626,0.21407,3271.7,3271.6,0.9092]
[1736693677822,4.0524,3271.9,3271.2,0.903]
[1736693678128,0.2141,3271.3,3271.2,0.903]
[1736693678523,3.42189,3271.4,3271.2,0.903]
[1736693678929,3.42189,3271.4,3271.2,1.1171]
[1736693679119,3.42189,3271.4,3271.2,0.903]
[1736693679921,3.42189,3271.4,3271.2,1.1171]
[1736693680123,3.42189,3271.4,3271.2,0.903]
[1736693686033,0.21409,3271.4,3271.2,0.903]
[1736693686933,0.2141,3271.3,3271.2,0.903]
[1736693687135,0.21409,3271.4,3271.2,0.903]
[1736693687335,4.9643,3271.6,3271.2,0.903]
[1736693687336,0.21408,3271.5,3271.2,0.903]
[1736693687532,1.10909,3271.4,3271.2,0.903]
[1736693693241,0.2141,3271.3,3271.2,0.903]
[1736693693539,0.2141,3271.3,3271.1,0.21411]
[1736693693732,0.8933,3271.2,3271.1,0.21411]
[1736693697339,0.8933,3271.2,3271.0,2.1072]
[1736693697537,0.8933,3271.2,3271.1,0.21411]
[1736693700638,0.8933,3271.2,3271.0,2.1072]
[1736693700843,0.8933,3271.2,3271.1,0.21411]
[1736693701045,0.21411,3271.1,3270.9,0.8669]
[1736693701538,0.21411,3271.1,3270.9,1.08102]
[1736693701738,0.8933,3271.2,3270.9,1.08102]
[1736693701945,1.1074,3271.2,3270.9,1.08102]
[1736693702140,1.1074,3271.2,3270.9,0.8669]
[1736693702452,0.8933,3271.2,3271.0,0.21411]
[1736693702837,0.8933,3271.2,3271.1,1.08051]
[1736693703039,6.20071433,3271.5,3271.2,0.2141]
[1736693703245,6.20071433,3271.5,3271.3,0.8496]
[1736693703439,6.20071433,3271.5,3271.4,0.8701]
[1736693703633,5.98662433,3271.5,3271.2,0.2141]
[1736693703834,1.09259,3271.4,3271.2,0.2141]
[1736693704040,1.09259,3271.4,3271.3,0.8779]
[1736693704248,1.09259,3271.4,3271.3,2.647]
[1736693704446,1.09259,3271.4,3271.3,43.447]
[1736693704946,1.09259,3271.4,3271.3,2.647]
[1736693705647,1.09259,3271.4,3271.3,2.8611]
[1736693706341,1.09259,3271.4,3271.3,2.647]
[1736693706643,1.09259,3271.4,3271.3,2.8611]
[1736693707650,1.09259,3271.4,3271.3,1.748]
[1736693708141,0.8785,3271.4,3270.9,0.9052]
[1736693708347,0.21411,3271.1,3271.0,1.09961]
[1736693711946,0.21411,3271.1,3271.0,0.8855]
[1736693716752,0.21413,3270.8,3270.7,4.1273]
[1736693717049,3.2078,3271.0,3270.6,0.8904]
[1736693717252,3.2078,3271.0,3270.5,5.70688155]
[1736693717253,0.21414,3270.6,3270.5,4.80168155]
[1736693717457,3.42194,3270.6,3270.5,4.80168155]
[1736693718049,3.2078,3270.6,3270.1,1.8036]
[1736693718248,0.21417,3270.2,3270.1,0.8904]
[1736693720350,0.21417,3270.1,3270.0,0.8651]
[1736693720653,1.99327,3270.1,3270.0,0.8651]
[1736693722651,1.99327,3270.1,3269.8,0.8514]
[1736693722652,0.21419,3270.0,3269.8,0.8514]
[1736693722849,0.21419,3270.0,3269.8,42.5325]
[1736693723060,1.7791,3270.1,3269.8,42.5325]
[1736693723250,0.21419,3269.9,3269.8,42.5325]
[1736693723555,0.21418,3270.0,3269.8,42.5325]
[1736693724247,1.7791,3270.1,3269.8,42.5325]
[1736693724555,0.21418,3270.0,3269.8,42.5325]
[1736693725557,0.21418,3270.0,3269.8,1.7325]
[1736693726052,0.21418,3270.0,3269.9,40.8]
[1736693727054,1.7791,3270.1,3269.9,40.8]
[1736693727255,1.99328,3270.1,3269.9,40.8]
[1736693727457,1.7791,3270.1,3269.9,40.8]
[1736693727657,0.21418,3270.0,3269.9,40.8]
[1736693727956,1.99328,3270.1,3269.9,40.8]
[1736693728859,1.99328,3270.1,3269.8,1.7325]
[1736693729058,1.99328,3270.1,3269.8,1.94669]
[1736693729356,1.99328,3270.1,3269.8,42.74669]
[1736693729956,1.99328,3270.1,3269.8,42.5325]
[1736693730159,1.99328,3270.1,3269.8,1.7325]
[1736693730556,1.99328,3270.1,3269.8,1.94669]
[1736693732558,1.7791,3270.1,3269.9,0.21419]
[1736693732760,1.7791,3270.1,3269.8,1.7325]
[1736693732958,0.21419,3269.9,3269.8,1.7325]
[1736693734551,0.21418,3270.0,3269.8,1.7325]
[1736693735857,3.2078,3270.3,3269.9,0.21419]
[1736693736157,3.2078,3270.3,3270.1,0.21417]
[1736693736556,3.2078,3270.3,3270.2,0.4436]
[1736693737459,3.42196,3270.3,3270.2,0.4436]
[1736693738464,3.2078,3270.3,3270.2,0.4436]
[1736693738863,3.42196,3270.3,3270.2,0.4436]
[1736693739159,3.2078,3270.3,3270.2,0.4436]
[1736693739366,3.2078,3270.3,3270.2,0.65777]
[1736693739559,3.42196,3270.4,3270.2,0.65777]
[1736693739754,3.42196,3270.4,3270.3,0.4596]
[1736693740468,0.21416,3270.4,3270.3,0.4596]
[1736693740669,3.42196,3270.4,3270.3,0.4596]
[1736693740964,3.2078,3270.4,3270.3,0.4596]
[1736693741166,3.2078,3270.4,3270.3,0.67376]
[1736693741463,3.42195,3270.4,3270.3,0.4596]
[1736693742770,3.42195,3270.4,3270.3,0.67376]
[1736693743172,3.2078,3270.4,3270.3,0.67376]
[1736693743665,3.2078,3270.4,3270.3,1.11866]
[1736693743863,3.2078,3270.8,3270.3,0.9045]
[1736693744062,3.88623,3270.8,3270.7,0.21413]
[1736693744262,3.88623,3270.8,3270.6,0.21414]
[1736693744263,0.21414,3270.7,3270.6,0.21414]
[1736693746871,0.21415,3270.6,3270.5,0.21414]
[1736693750170,0.21415,3270.5,3270.4,0.21415]
[1736693754471,0.21414,3270.6,3270.5,0.21414]
[1736693755172,0.21415,3270.5,3270.4,0.21415]
[1736693756679,3.6721,3270.8,3270.3,0.9045]
[1736693757377,3.6721,3270.8,3270.3,1.11866]
[1736693757578,0.21415,3270.4,3270.3,1.11866]
[1736693760582,0.21415,3270.4,3270.3,0.9045]
[1736693762284,0.21415,3270.4,3270.3,1.11866]
[1736693763587,5.98662433,3270.5,3270.3,0.9045]
[1736693763886,5.98662433,3270.5,3270.4,0.21415]
[1736693764486,9.19442433,3270.8,3270.3,0.9045]